[Event "Chessable Masters - Torneo preliminare"]
[White "Kosteniuk, Alexandra"]
[Black "Abdusattorov, Nodirbek"]
[WhiteFideId "4128125"]
[BlackFideId "14204118"]
[WhiteElo "2524"]
[BlackElo "2714"]
[Result "0-1"]
[Round "3"]
[TimeControl "600+2"]
[Date "2023.03.13"]
[WhiteClock "0:00:28"]
[BlackClock "0:04:13"]

1. e4 {[%clk 0:09:31]}  c5 {[%clk 0:09:59]} 2. Nf3 {[%clk 0:09:30]}  d6 {[%clk 0:09:58]} 3. d4 {[%clk 0:09:27]}  cxd4 {[%clk 0:10:00]} 4. Nxd4 {[%clk 0:09:28]}  Nf6 {[%clk 0:10:02]} 5. Nc3 {[%clk 0:09:30]}  g6 {[%clk 0:10:03]} 6. Be3 {[%clk 0:09:30]}  Bg7 {[%clk 0:10:05]} 7. f3 {[%clk 0:09:31]}  O-O {[%clk 0:10:06]} 8. Qd2 {[%clk 0:09:33]}  Nc6 {[%clk 0:10:08]} 9. O-O-O {[%clk 0:09:34]}  h5 {[%clk 0:10:10]} 10. Bc4 {[%clk 0:08:06]}  Bd7 {[%clk 0:10:09]} 11. Kb1 {[%clk 0:07:52]}  Rc8 {[%clk 0:10:05]} 12. Bb3 {[%clk 0:07:52]}  Na5 {[%clk 0:10:04]} 13. h4 {[%clk 0:07:47]}  Nc4 {[%clk 0:09:54]} 14. Bxc4 {[%clk 0:07:47]}  Rxc4 {[%clk 0:09:56]} 15. Nde2 {[%clk 0:07:43]}  b5 {[%clk 0:09:47]} 16. g4 {[%clk 0:06:47]}  b4 {[%clk 0:08:03]} 17. Nd5 {[%clk 0:06:38]}  Nxd5 {[%clk 0:08:05]} 18. exd5 {[%clk 0:06:13]}  hxg4 {[%clk 0:08:03]} 19. Nd4 {[%clk 0:03:22]}  Qa5 {[%clk 0:07:04]} 20. h5 {[%clk 0:03:03]}  Qxd5 {[%clk 0:05:37]} 21. hxg6 {[%clk 0:02:54]}  fxg6 {[%clk 0:05:38]} 22. Qh2 {[%clk 0:02:54]}  Qe5 {[%clk 0:04:36]} 23. Qe2 {[%clk 0:01:11]}  Rxd4 {[%clk 0:04:24]} 24. Rxd4 {[%clk 0:01:10]}  Rxf3 {[%clk 0:04:26]} 25. Rxb4 {[%clk 0:01:01]}  Rxe3 {[%clk 0:04:16]} 26. Rb8+ {[%clk 0:01:01]}  Kf7 {[%clk 0:04:18]} 27. Qc4+ {[%clk 0:00:33]}  d5 {[%clk 0:04:17]} 28. Rf1+ {[%clk 0:00:27]}  Bf5 {[%clk 0:04:18]} 29. Qb4 {[%clk 0:00:28]}  a5 {[%clk 0:04:13]} 0-1


[Site "Internet"]

[Event "Chessable Masters - Torneo preliminare"]
[White "Mikaelyan, Arman"]
[Black "Le, Quang Liem"]
[WhiteFideId "13304852"]
[BlackFideId "12401137"]
[WhiteElo "2456"]
[BlackElo "2661"]
[Result "0-1"]
[Round "3"]
[TimeControl "600+2"]
[Date "2023.03.13"]
[WhiteClock "0:00:04"]
[BlackClock "0:02:19"]

1. d4 {[%clk 0:09:40]}  Nf6 {[%clk 0:10:00]} 2. c4 {[%clk 0:09:41]}  e6 {[%clk 0:10:02]} 3. Nf3 {[%clk 0:09:38]}  d5 {[%clk 0:10:01]} 4. Nc3 {[%clk 0:09:36]}  dxc4 {[%clk 0:10:02]} 5. e4 {[%clk 0:09:35]}  Bb4 {[%clk 0:10:03]} 6. Bxc4 {[%clk 0:09:30]}  Nxe4 {[%clk 0:10:04]} 7. O-O {[%clk 0:09:16]}  Nxc3 {[%clk 0:10:05]} 8. bxc3 {[%clk 0:09:07]}  Be7 {[%clk 0:10:06]} 9. Ne5 {[%clk 0:07:41]}  O-O {[%clk 0:10:06]} 10. Re1 {[%clk 0:06:37]}  Nd7 {[%clk 0:09:04]} 11. Bf4 {[%clk 0:06:10]}  c5 {[%clk 0:08:56]} 12. Nxd7 {[%clk 0:04:35]}  Bxd7 {[%clk 0:08:55]} 13. d5 {[%clk 0:04:36]}  Bf6 {[%clk 0:08:48]} 14. Rc1 {[%clk 0:03:48]}  exd5 {[%clk 0:08:01]} 15. Bxd5 {[%clk 0:03:42]}  Bc6 {[%clk 0:08:00]} 16. Bxc6 {[%clk 0:03:39]}  bxc6 {[%clk 0:08:02]} 17. Bd6 {[%clk 0:03:29]}  Re8 {[%clk 0:07:57]} 18. Bxc5 {[%clk 0:03:06]}  Qa5 {[%clk 0:07:49]} 19. Rxe8+ {[%clk 0:02:24]}  Rxe8 {[%clk 0:07:51]} 20. Qd7 {[%clk 0:02:22]}  Rd8 {[%clk 0:07:37]} 21. Qxa7 {[%clk 0:02:22]}  Qxc3 {[%clk 0:07:37]} 22. Rf1 {[%clk 0:02:23]}  h5 {[%clk 0:07:23]} 23. h3 {[%clk 0:02:13]}  Rd5 {[%clk 0:07:13]} 24. Be3 {[%clk 0:02:00]}  Be5 {[%clk 0:06:47]} 25. Qa8+ {[%clk 0:01:53]}  Kh7 {[%clk 0:06:48]} 26. Qe8 {[%clk 0:01:53]}  Kg6 {[%clk 0:05:46]} 27. a4 {[%clk 0:01:54]}  Qc4 {[%clk 0:05:40]} 28. Qa8 {[%clk 0:01:01]}  Kh7 {[%clk 0:05:24]} 29. a5 {[%clk 0:00:53]}  Bh2+ {[%clk 0:05:15]} 30. Kxh2 {[%clk 0:00:52]}  Qxf1 {[%clk 0:05:17]} 31. a6 {[%clk 0:00:42]}  Rd6 {[%clk 0:04:11]} 32. a7 {[%clk 0:00:39]}  Rg6 {[%clk 0:04:12]} 33. g3 {[%clk 0:00:39]}  h4 {[%clk 0:04:11]} 34. g4 {[%clk 0:00:24]}  Rf6 {[%clk 0:04:12]} 35. Qe8 {[%clk 0:00:08]}  Rxf2+ {[%clk 0:04:03]} 36. Bxf2 {[%clk 0:00:10]}  Qxf2+ {[%clk 0:04:05]} 37. Kh1 {[%clk 0:00:12]}  Qxa7 {[%clk 0:03:57]} 38. Qxc6 {[%clk 0:00:08]}  Qe3 {[%clk 0:03:52]} 39. Qg2 {[%clk 0:00:03]}  Kh6 {[%clk 0:03:48]} 40. Kh2 {[%clk 0:00:05]}  Qf4+ {[%clk 0:03:48]} 41. Kh1 {[%clk 0:00:06]}  g6 {[%clk 0:03:43]} 42. Kg1 {[%clk 0:00:08]}  Qe3+ {[%clk 0:03:44]} 43. Kh2 {[%clk 0:00:08]}  f6 {[%clk 0:03:42]} 44. Kh1 {[%clk 0:00:08]}  Kg5 {[%clk 0:03:39]} 45. Qd5+ {[%clk 0:00:09]}  Kf4 {[%clk 0:03:37]} 46. Qd6+ {[%clk 0:00:11]}  Kf3 {[%clk 0:03:22]} 47. Qxf6+ {[%clk 0:00:03]}  Kg3 {[%clk 0:03:22]} 48. Qd6+ {[%clk 0:00:02]}  Kxh3 {[%clk 0:03:14]} 49. Qh2+ {[%clk 0:00:03]}  Kxg4 {[%clk 0:03:15]} 50. Qg2+ {[%clk 0:00:04]}  Kf5 {[%clk 0:03:07]} 51. Qd5+ {[%clk 0:00:04]}  Qe5 {[%clk 0:03:08]} 52. Qf7+ {[%clk 0:00:05]}  Kg5 {[%clk 0:03:08]} 53. Qg8 {[%clk 0:00:04]}  h3 {[%clk 0:03:01]} 54. Qd8+ {[%clk 0:00:04]}  Qf6 {[%clk 0:02:49]} 55. Qd2+ {[%clk 0:00:03]}  Qf4 {[%clk 0:02:49]} 56. Qd5+ {[%clk 0:00:04]}  Kh6 {[%clk 0:02:48]} 57. Qa8 {[%clk 0:00:03]}  Qf1+ {[%clk 0:02:46]} 58. Kh2 {[%clk 0:00:05]}  Qf5 {[%clk 0:02:22]} 59. Qh8+ {[%clk 0:00:05]}  Kg5 {[%clk 0:02:23]} 60. Qd8+ {[%clk 0:00:06]}  Qf6 {[%clk 0:02:20]} 61. Qa5+ {[%clk 0:00:04]}  Kg4 {[%clk 0:02:19]} 0-1


[Site "Internet"]

[Event "Chessable Masters - Torneo preliminare"]
[White "Michalik, Peter"]
[Black "Ponkratov, Pavel"]
[WhiteFideId "14907526"]
[BlackFideId "4157800"]
[WhiteElo "2526"]
[BlackElo "2586"]
[Result "1-0"]
[Round "3"]
[TimeControl "600+2"]
[Date "2023.03.13"]
[WhiteClock "0:00:11"]
[BlackClock "0:00:15"]

1. e4 {[%clk 0:09:56]}  e6 {[%clk 0:09:54]} 2. d4 {[%clk 0:09:55]}  d5 {[%clk 0:09:55]} 3. Nc3 {[%clk 0:09:56]}  Bb4 {[%clk 0:09:55]} 4. exd5 {[%clk 0:09:52]}  exd5 {[%clk 0:09:56]} 5. Bd3 {[%clk 0:09:52]}  c6 {[%clk 0:09:57]} 6. Nf3 {[%clk 0:09:52]}  Bg4 {[%clk 0:09:56]} 7. O-O {[%clk 0:09:52]}  Ne7 {[%clk 0:09:56]} 8. Bf4 {[%clk 0:09:40]}  Bd6 {[%clk 0:09:54]} 9. Bg3 {[%clk 0:09:37]}  Bxg3 {[%clk 0:09:54]} 10. hxg3 {[%clk 0:09:37]}  Nd7 {[%clk 0:09:53]} 11. Re1 {[%clk 0:09:36]}  h5 {[%clk 0:09:39]} 12. Qd2 {[%clk 0:09:35]}  Bxf3 {[%clk 0:09:38]} 13. gxf3 {[%clk 0:09:36]}  h4 {[%clk 0:09:39]} 14. Qg5 {[%clk 0:09:13]}  Kf8 {[%clk 0:09:38]} 15. Re3 {[%clk 0:09:03]}  hxg3 {[%clk 0:09:13]} 16. fxg3 {[%clk 0:08:56]}  Ng8 {[%clk 0:09:06]} 17. Qf4 {[%clk 0:08:43]}  Qb8 {[%clk 0:08:51]} 18. Ne2 {[%clk 0:08:19]}  Ngf6 {[%clk 0:08:37]} 19. Re1 {[%clk 0:08:15]}  Qxf4 {[%clk 0:08:14]} 20. Nxf4 {[%clk 0:08:15]}  Rd8 {[%clk 0:08:15]} 21. Bf5 {[%clk 0:08:07]}  Nb6 {[%clk 0:08:13]} 22. b3 {[%clk 0:08:08]}  Ne8 {[%clk 0:08:05]} 23. Kg2 {[%clk 0:07:54]}  Nd6 {[%clk 0:08:05]} 24. Bh3 {[%clk 0:07:55]}  g6 {[%clk 0:07:48]} 25. Nd3 {[%clk 0:07:50]}  Nb5 {[%clk 0:07:42]} 26. Re7 {[%clk 0:07:49]}  Rb8 {[%clk 0:07:12]} 27. c3 {[%clk 0:04:42]}  Nxc3 {[%clk 0:07:02]} 28. a4 {[%clk 0:04:43]}  Ne4 {[%clk 0:06:58]} 29. Rc7 {[%clk 0:04:43]}  Na8 {[%clk 0:06:09]} 30. Rd7 {[%clk 0:04:25]}  Nf6 {[%clk 0:05:56]} 31. Rde7 {[%clk 0:04:00]}  Ne4 {[%clk 0:03:26]} 32. Rd7 {[%clk 0:03:32]}  Nf6 {[%clk 0:03:23]} 33. Rde7 {[%clk 0:03:30]}  Ne4 {[%clk 0:03:24]} 34. Re5 {[%clk 0:03:12]}  Nf6 {[%clk 0:03:21]} 35. Nc5 {[%clk 0:02:40]}  Nc7 {[%clk 0:03:16]} 36. Re7 {[%clk 0:02:38]}  Re8 {[%clk 0:03:13]} 37. Rxe8+ {[%clk 0:02:33]}  Nfxe8 {[%clk 0:03:08]} 38. Nxb7 {[%clk 0:02:33]}  Na6 {[%clk 0:02:48]} 39. Bd7 {[%clk 0:01:38]}  Nf6 {[%clk 0:02:47]} 40. Bxc6 {[%clk 0:01:39]}  Nb4 {[%clk 0:02:49]} 41. Bb5 {[%clk 0:01:39]}  Nc2 {[%clk 0:02:50]} 42. Rc1 {[%clk 0:01:27]}  Nxd4 {[%clk 0:02:49]} 43. Rc7 {[%clk 0:01:17]}  Rh7 {[%clk 0:01:59]} 44. Nd8 {[%clk 0:01:14]}  a5 {[%clk 0:01:57]} 45. Ra7 {[%clk 0:01:14]}  Nxb3 {[%clk 0:01:56]} 46. Nc6 {[%clk 0:01:13]}  d4 {[%clk 0:01:34]} 47. Ne5 {[%clk 0:01:05]}  Nd5 {[%clk 0:01:23]} 48. Nxg6+ {[%clk 0:00:56]}  Kg7 {[%clk 0:01:24]} 49. Ne5 {[%clk 0:00:56]}  Ne3+ {[%clk 0:01:24]} 50. Kg1 {[%clk 0:00:57]}  Kf6 {[%clk 0:01:25]} 51. Nd7+ {[%clk 0:00:45]}  Kg5 {[%clk 0:01:21]} 52. f4+ {[%clk 0:00:42]}  Kh6 {[%clk 0:01:15]} 53. Nf6 {[%clk 0:00:42]}  Rg7 {[%clk 0:01:10]} 54. Kf2 {[%clk 0:00:39]}  Nd2 {[%clk 0:00:48]} 55. Ra6 {[%clk 0:00:32]}  Rg6 {[%clk 0:00:47]} 56. Bd3 {[%clk 0:00:33]}  Rxf6 {[%clk 0:00:15]} 57. Rxf6+ {[%clk 0:00:32]}  Kg7 {[%clk 0:00:17]} 58. Ra6 {[%clk 0:00:30]}  Nb3 {[%clk 0:00:18]} 59. Ra7 {[%clk 0:00:31]}  Nc5 {[%clk 0:00:19]} 60. Bb5 {[%clk 0:00:26]}  Ne4+ {[%clk 0:00:20]} 61. Kf3 {[%clk 0:00:25]}  Nd2+ {[%clk 0:00:21]} 62. Ke2 {[%clk 0:00:26]}  Ne4 {[%clk 0:00:22]} 63. Rxa5 {[%clk 0:00:25]}  Nxg3+ {[%clk 0:00:21]} 64. Kf3 {[%clk 0:00:24]}  Ngf5 {[%clk 0:00:20]} 65. Bd3 {[%clk 0:00:25]}  Ne7 {[%clk 0:00:21]} 66. Ra7 {[%clk 0:00:22]}  Nc6 {[%clk 0:00:22]} 67. Rc7 {[%clk 0:00:18]}  Nb4 {[%clk 0:00:23]} 68. Bc4 {[%clk 0:00:18]}  Kg6 {[%clk 0:00:19]} 69. a5 {[%clk 0:00:18]}  Nf5 {[%clk 0:00:16]} 70. a6 {[%clk 0:00:15]}  d3 {[%clk 0:00:15]} 71. Bxd3 {[%clk 0:00:11]} 1-0


[Site "Internet"]

[Event "Chessable Masters - Torneo preliminare"]
[White "Chirila, Ioan-Cristian"]
[Black "Erigaisi, Arjun"]
[WhiteFideId "1211668"]
[BlackFideId "35009192"]
[WhiteElo "2508"]
[BlackElo "2685"]
[Result "0-1"]
[Round "3"]
[TimeControl "600+2"]
[Date "2023.03.13"]
[WhiteClock "0:00:10"]
[BlackClock "0:02:40"]

1. d4 {[%clk 0:09:58]}  Nf6 {[%clk 0:09:59]} 2. c4 {[%clk 0:09:58]}  e6 {[%clk 0:10:00]} 3. Nf3 {[%clk 0:09:48]}  d5 {[%clk 0:10:01]} 4. Nc3 {[%clk 0:09:48]}  c6 {[%clk 0:10:02]} 5. Qd3 {[%clk 0:09:27]}  dxc4 {[%clk 0:10:00]} 6. Qxc4 {[%clk 0:09:28]}  b5 {[%clk 0:10:02]} 7. Qd3 {[%clk 0:09:27]}  a6 {[%clk 0:10:00]} 8. Bg5 {[%clk 0:09:00]}  Bb7 {[%clk 0:09:48]} 9. e4 {[%clk 0:08:49]}  h6 {[%clk 0:09:22]} 10. Bh4 {[%clk 0:08:36]}  c5 {[%clk 0:09:03]} 11. dxc5 {[%clk 0:06:39]}  Qxd3 {[%clk 0:09:05]} 12. Bxd3 {[%clk 0:06:39]}  Bxc5 {[%clk 0:09:06]} 13. a3 {[%clk 0:05:37]}  Nbd7 {[%clk 0:08:56]} 14. Ke2 {[%clk 0:05:11]}  Nh5 {[%clk 0:08:47]} 15. Rhd1 {[%clk 0:04:56]}  g5 {[%clk 0:08:33]} 16. Bg3 {[%clk 0:04:55]}  g4 {[%clk 0:08:34]} 17. Nd2 {[%clk 0:04:41]}  Nxg3+ {[%clk 0:08:35]} 18. hxg3 {[%clk 0:04:42]}  Ne5 {[%clk 0:08:37]} 19. b4 {[%clk 0:04:02]}  Bd4 {[%clk 0:08:02]} 20. Rac1 {[%clk 0:03:58]}  Nxd3 {[%clk 0:08:01]} 21. Kxd3 {[%clk 0:03:56]}  Bxf2 {[%clk 0:08:02]} 22. Nb3 {[%clk 0:03:55]}  Bxg3 {[%clk 0:07:48]} 23. Ke3 {[%clk 0:03:50]}  Bc7 {[%clk 0:07:26]} 24. Nd5 {[%clk 0:03:09]}  Bxd5 {[%clk 0:06:54]} 25. exd5 {[%clk 0:03:09]}  Bd8 {[%clk 0:06:55]} 26. Rc6 {[%clk 0:02:54]}  exd5 {[%clk 0:06:46]} 27. Rxd5 {[%clk 0:02:53]}  Bg5+ {[%clk 0:06:44]} 28. Ke4 {[%clk 0:02:37]}  O-O {[%clk 0:06:46]} 29. Kf5 {[%clk 0:02:30]}  Rfe8 {[%clk 0:06:36]} 30. Kxg4 {[%clk 0:02:03]}  Re4+ {[%clk 0:06:36]} 31. Kf5 {[%clk 0:01:59]}  Rae8 {[%clk 0:05:08]} 32. g3 {[%clk 0:01:59]}  Re3 {[%clk 0:05:08]} 33. Nd4 {[%clk 0:01:52]}  Rxa3 {[%clk 0:04:57]} 34. Kg4 {[%clk 0:01:32]}  Rd3 {[%clk 0:04:56]} 35. Rcd6 {[%clk 0:01:14]}  Re4+ {[%clk 0:04:55]} 36. Kh3 {[%clk 0:01:01]}  Kh7 {[%clk 0:04:26]} 37. Nc6 {[%clk 0:00:54]}  Rc3 {[%clk 0:04:05]} 38. Rf5 {[%clk 0:00:43]}  Rf4 {[%clk 0:03:54]} 39. Nd4 {[%clk 0:00:19]}  Rd3 {[%clk 0:03:01]} 40. Rfd5 {[%clk 0:00:21]}  Rh4+ {[%clk 0:02:53]} 41. Kg2 {[%clk 0:00:21]}  Rg4 {[%clk 0:02:55]} 42. Nf5 {[%clk 0:00:16]}  Rxd5 {[%clk 0:02:56]} 43. Rxd5 {[%clk 0:00:18]}  Rxb4 {[%clk 0:02:57]} 44. Rd7 {[%clk 0:00:14]}  a5 {[%clk 0:02:49]} 45. Nd6 {[%clk 0:00:11]}  Rd4 {[%clk 0:02:42]} 46. Rxf7+ {[%clk 0:00:10]}  Kg6 {[%clk 0:02:43]} 47. Rd7 {[%clk 0:00:10]}  a4 {[%clk 0:02:40]} 0-1


[Site "Internet"]

[Event "Chessable Masters - Torneo preliminare"]
[White "Tabatabaei, M. Amin"]
[Black "Bindrich, Falko"]
[WhiteFideId "12521213"]
[BlackFideId "4676670"]
[WhiteElo "2558"]
[BlackElo "2548"]
[Result "1-0"]
[Round "3"]
[TimeControl "600+2"]
[Date "2023.03.13"]
[WhiteClock "0:01:00"]
[BlackClock "0:02:22"]

1. d4 {[%clk 0:10:01]}  d5 {[%clk 0:09:58]} 2. c4 {[%clk 0:10:01]}  e6 {[%clk 0:09:59]} 3. Nf3 {[%clk 0:10:02]}  Nf6 {[%clk 0:09:59]} 4. g3 {[%clk 0:10:04]}  Bb4+ {[%clk 0:09:59]} 5. Bd2 {[%clk 0:10:04]}  Be7 {[%clk 0:10:01]} 6. Bg2 {[%clk 0:10:06]}  O-O {[%clk 0:10:02]} 7. Qc2 {[%clk 0:10:07]}  Nbd7 {[%clk 0:10:04]} 8. h4 {[%clk 0:10:08]}  c6 {[%clk 0:09:53]} 9. Nc3 {[%clk 0:10:07]}  b5 {[%clk 0:09:16]} 10. cxb5 {[%clk 0:09:49]}  cxb5 {[%clk 0:09:18]} 11. Nxb5 {[%clk 0:09:41]}  Ba6 {[%clk 0:09:14]} 12. Nc3 {[%clk 0:07:58]}  Rc8 {[%clk 0:09:13]} 13. Qd1 {[%clk 0:07:54]}  Qb6 {[%clk 0:09:07]} 14. Rb1 {[%clk 0:07:49]}  Ne4 {[%clk 0:08:35]} 15. O-O {[%clk 0:07:49]}  f5 {[%clk 0:08:36]} 16. Bg5 {[%clk 0:06:25]}  Bb4 {[%clk 0:08:09]} 17. Qa4 {[%clk 0:05:29]}  Rc6 {[%clk 0:07:38]} 18. Rfc1 {[%clk 0:05:13]}  Rfc8 {[%clk 0:07:24]} 19. Bf1 {[%clk 0:04:53]}  Bc4 {[%clk 0:05:23]} 20. Nxe4 {[%clk 0:03:21]}  fxe4 {[%clk 0:05:23]} 21. Nd2 {[%clk 0:03:22]}  Bb5 {[%clk 0:04:33]} 22. Rxc6 {[%clk 0:03:22]}  Bxc6 {[%clk 0:04:35]} 23. Qb3 {[%clk 0:03:23]}  Qa5 {[%clk 0:04:36]} 24. Qe3 {[%clk 0:01:09]}  Qxa2 {[%clk 0:04:30]} 25. Rc1 {[%clk 0:01:10]}  Qxb2 {[%clk 0:04:21]} 26. Nb3 {[%clk 0:01:09]}  Bb7 {[%clk 0:03:38]} 27. Rxc8+ {[%clk 0:01:09]}  Bxc8 {[%clk 0:03:40]} 28. Bh3 {[%clk 0:01:11]}  Nf8 {[%clk 0:03:21]} 29. Nc5 {[%clk 0:01:11]}  e5 {[%clk 0:02:33]} 30. Bxc8 {[%clk 0:01:03]}  exd4 {[%clk 0:02:34]} 31. Qb3 {[%clk 0:01:00]}  Qxb3 {[%clk 0:02:20]} 32. Nxb3 {[%clk 0:01:02]}  Bc3 {[%clk 0:02:22]} 33. Bb7 {[%clk 0:01:00]} 1-0


[Site "Internet"]

[Event "Chessable Masters - Torneo preliminare"]
[White "Vallejo Pons, Francisco"]
[Black "Gukesh, D"]
[WhiteFideId "2205530"]
[BlackFideId "46616543"]
[WhiteElo "2662"]
[BlackElo "2629"]
[Result "0-1"]
[Round "3"]
[TimeControl "600+2"]
[Date "2023.03.13"]
[WhiteClock "0:00:04"]
[BlackClock "0:02:22"]

1. e4 {[%clk 0:10:00]}  c5 {[%clk 0:10:00]} 2. b3 {[%clk 0:10:01]}  Nc6 {[%clk 0:09:57]} 3. Bb2 {[%clk 0:10:00]}  e5 {[%clk 0:09:59]} 4. Bc4 {[%clk 0:08:52]}  Nf6 {[%clk 0:09:33]} 5. Nc3 {[%clk 0:08:07]}  g6 {[%clk 0:09:33]} 6. Nge2 {[%clk 0:07:48]}  Bg7 {[%clk 0:09:30]} 7. O-O {[%clk 0:07:44]}  d6 {[%clk 0:09:26]} 8. d3 {[%clk 0:07:41]}  O-O {[%clk 0:09:25]} 9. a4 {[%clk 0:07:20]}  Kh8 {[%clk 0:09:16]} 10. Nd5 {[%clk 0:06:53]}  Nxd5 {[%clk 0:08:55]} 11. Bxd5 {[%clk 0:06:55]}  Ne7 {[%clk 0:08:56]} 12. Bc4 {[%clk 0:06:34]}  g5 {[%clk 0:07:51]} 13. Ng3 {[%clk 0:05:37]}  f5 {[%clk 0:07:49]} 14. Nh5 {[%clk 0:05:27]}  Bh6 {[%clk 0:07:42]} 15. b4 {[%clk 0:04:27]}  cxb4 {[%clk 0:06:52]} 16. d4 {[%clk 0:04:28]}  Qc7 {[%clk 0:06:51]} 17. dxe5 {[%clk 0:04:27]}  dxe5 {[%clk 0:06:51]} 18. Bb3 {[%clk 0:03:46]}  f4 {[%clk 0:06:50]} 19. f3 {[%clk 0:02:49]}  Nc6 {[%clk 0:06:02]} 20. c3 {[%clk 0:02:12]}  bxc3 {[%clk 0:05:50]} 21. Bxc3 {[%clk 0:02:13]}  Rd8 {[%clk 0:05:51]} 22. Qc2 {[%clk 0:02:11]}  Qe7 {[%clk 0:05:20]} 23. Rad1 {[%clk 0:01:53]}  Bd7 {[%clk 0:05:20]} 24. Bd5 {[%clk 0:01:05]}  Be8 {[%clk 0:05:12]} 25. g4 {[%clk 0:01:04]}  Bxh5 {[%clk 0:04:37]} 26. gxh5 {[%clk 0:01:06]}  Bg7 {[%clk 0:04:30]} 27. Bxc6 {[%clk 0:00:17]}  Qc5+ {[%clk 0:04:30]} 28. Kg2 {[%clk 0:00:15]}  Qxc6 {[%clk 0:04:31]} 29. Qb2 {[%clk 0:00:16]}  Re8 {[%clk 0:03:24]} 30. Rd5 {[%clk 0:00:14]}  Rac8 {[%clk 0:03:25]} 31. Rc1 {[%clk 0:00:12]}  g4 {[%clk 0:02:18]} 32. fxg4 {[%clk 0:00:13]}  f3+ {[%clk 0:02:19]} 33. Kxf3 {[%clk 0:00:08]}  Qf6+ {[%clk 0:02:20]} 34. Kg2 {[%clk 0:00:07]}  Qf4 {[%clk 0:02:21]} 35. Re1 {[%clk 0:00:04]}  Qxg4+ {[%clk 0:02:22]} 0-1


[Site "Internet"]